Department Family,Entity,Date Paid,Expense Type,Expense Area,Supplier,Transaction Number,Amount (�),Supplier VAT Registration Number
BEIS,Met Office,2021-10-11,11 SERVICES,PROGRAMMES,494 CONSULTING,460886,2311.69,332819305
BEIS,Met Office,2021-10-26,07 EQUIPMENT,SERVICES,ABOUT PRESENTATION LTD,461265,4333,619895287
BEIS,Met Office,2021-10-07,06 ACCOMMODATION,CHIEF FINANCIAL OFFICER,ABOVE THE REST COMMERCIAL CLEANING LTD,460747,565,166969348
BEIS,Met Office,2021-10-14,11 SERVICES,MARKETS,ACCELERATION EMARKETING,460874,2997.85,848940776
BEIS,Met Office,2021-10-14,11 SERVICES,MARKETS,ACCELERATION EMARKETING,460875,28.58,848940776
BEIS,Met Office,2021-10-06,11 SERVICES,PEOPLE,ACTIVE LEARNING TEAM LTD,460740,6250,-
BEIS,Met Office,2021-10-25,11 SERVICES,PEOPLE,ACTIVE LEARNING TEAM LTD,461263,1400,-
BEIS,Met Office,2021-10-11,11 SERVICES,CHIEF FINANCIAL OFFICER,ADAM PHONES LTD,460828,171,538877093
BEIS,Met Office,2021-10-06,10 EQUIPMENT MAINTENANCE,SERVICES,ADOLF THIES GMBH & CO. KG GOTTINGEN,22984,1350.22,-
BEIS,Met Office,2021-10-07,11 SERVICES,MARKETS,ADOPSTAR,460666,1250,115036848
BEIS,Met Office,2021-10-07,11 SERVICES,MARKETS,AEROSPACE & MARINE INTERNATIONAL (UK) LIMITED,460789,46800,GB 856729086
BEIS,Met Office,2021-10-11,11 SERVICES,TECHNOLOGY AND CIO,AKAMAI TECHNOLOGIES LTD,460788,4921.28,745091237
BEIS,Met Office,2021-10-11,11 SERVICES,TECHNOLOGY AND CIO,AKAMAI TECHNOLOGIES LTD,460788,25836.75,745091237
BEIS,Met Office,2021-10-06,08 SOFTWARE LICENCES,PROGRAMMES,AKHTER COMPUTERS LTD,460702,90816.32,532262963
BEIS,Met Office,2021-10-05,11 SERVICES,CHIEF FINANCIAL OFFICER,ALLSTAR BUSINESS SOLUTIONS LTD,460678,3208.51,747880191
BEIS,Met Office,2021-10-19,11 SERVICES,CHIEF FINANCIAL OFFICER,ALLSTAR BUSINESS SOLUTIONS LTD,461116,2784.17,747880191
BEIS,Met Office,2021-10-19,11 SERVICES,CHIEF FINANCIAL OFFICER,ALPHABET (GB) LTD,444311,-461.8,572417244
BEIS,Met Office,2021-10-19,11 SERVICES,CHIEF FINANCIAL OFFICER,ALPHABET (GB) LTD,444312,-385.12,572417244
BEIS,Met Office,2021-10-19,11 SERVICES,CHIEF FINANCIAL OFFICER,ALPHABET (GB) LTD,444313,-377.32,572417244
BEIS,Met Office,2021-10-19,11 SERVICES,CHIEF FINANCIAL OFFICER,ALPHABET (GB) LTD,444314,-472.92,572417244
BEIS,Met Office,2021-10-19,11 SERVICES,CHIEF FINANCIAL OFFICER,ALPHABET (GB) LTD,444315,-398.2,572417244
BEIS,Met Office,2021-10-19,11 SERVICES,CHIEF FINANCIAL OFFICER,ALPHABET (GB) LTD,444316,-398.52,572417244
BEIS,Met Office,2021-10-19,11 SERVICES,CHIEF FINANCIAL OFFICER,ALPHABET (GB) LTD,444317,-271.68,572417244
BEIS,Met Office,2021-10-19,11 SERVICES,CHIEF FINANCIAL OFFICER,ALPHABET (GB) LTD,444606,330,572417244
BEIS,Met Office,2021-10-19,11 SERVICES,CHIEF FINANCIAL OFFICER,ALPHABET (GB) LTD,444607,10,572417244
BEIS,Met Office,2021-10-06,11 SERVICES,TECHNOLOGY AND CIO,AMAZON WEB SERVICES INC.,10363,51808.43,N/A
BEIS,Met Office,2021-10-06,11 SERVICES,TECHNOLOGY AND CIO,AMAZON WEB SERVICES INC.,10363,61137.01,N/A
BEIS,Met Office,2021-10-06,11 SERVICES,TECHNOLOGY AND CIO,AMAZON WEB SERVICES INC.,10364,489.04,N/A
BEIS,Met Office,2021-10-06,11 SERVICES,TECHNOLOGY AND CIO,AMAZON WEB SERVICES INC.,10365,12953.68,N/A
BEIS,Met Office,2021-10-20,11 SERVICES,TECHNOLOGY AND CIO,AMAZON WEB SERVICES INC.,10377,86952.8,N/A
BEIS,Met Office,2021-10-20,11 SERVICES,TECHNOLOGY AND CIO,AMAZON WEB SERVICES INC.,10381,18132.72,N/A
BEIS,Met Office,2021-10-20,08 SOFTWARE LICENCES,TECHNOLOGY AND CIO,"ANACONDA, INC.",10409,18024.87,-
BEIS,Met Office,2021-10-18,06 ACCOMMODATION,CHIEF FINANCIAL OFFICER,ANGLIAN WATER BUSINESS NATIONAL LTD,461061,30.41,51406002
BEIS,Met Office,2021-10-18,06 ACCOMMODATION,CHIEF FINANCIAL OFFICER,ANGLIAN WATER BUSINESS NATIONAL LTD,461062,56.06,51406002
BEIS,Met Office,2021-10-18,11 SERVICES,CHIEF FINANCIAL OFFICER,ANVIL MOBILE LIMITED,460993,82.6,981686175
BEIS,Met Office,2021-10-18,11 SERVICES,CHIEF FINANCIAL OFFICER,ANVIL MOBILE LIMITED,460993,98.6,981686175
BEIS,Met Office,2021-10-18,11 SERVICES,CHIEF FINANCIAL OFFICER,ANVIL MOBILE LIMITED,460993,111.3,981686175
BEIS,Met Office,2021-10-18,11 SERVICES,CHIEF FINANCIAL OFFICER,ANVIL MOBILE LIMITED,460993,34.85,981686175
BEIS,Met Office,2021-10-18,11 SERVICES,CHIEF FINANCIAL OFFICER,ANVIL MOBILE LIMITED,460993,43.6,981686175
BEIS,Met Office,2021-10-06,11 SERVICES,CHIEF FINANCIAL OFFICER,APPLE CENTRAL TAXIS,460750,511,449238720
BEIS,Met Office,2021-10-26,11 SERVICES,SERVICES,APPLIED SATELLITE TECHNOLOGY SYSTEMS LTD,461185,273.74,720108683
BEIS,Met Office,2021-10-25,11 SERVICES,SERVICES,APPLIED SATELLITE TECHNOLOGY SYSTEMS LTD,461186,8087.22,720108683
BEIS,Met Office,2021-10-21,12 INTERNATIONAL,MARKETS,APPLIED SATELLITE TECHNOLOGY SYSTEMS LTD,461187,30.97,720108683
BEIS,Met Office,2021-10-25,11 SERVICES,SERVICES,APPLIED SATELLITE TECHNOLOGY SYSTEMS LTD,461191,124.27,720108683
BEIS,Met Office,2021-10-25,11 SERVICES,SERVICES,APPLIED SATELLITE TECHNOLOGY SYSTEMS LTD,461193,61.94,720108683
BEIS,Met Office,2021-10-25,11 SERVICES,SERVICES,APPLIED SATELLITE TECHNOLOGY SYSTEMS LTD,461195,63.35,720108683
BEIS,Met Office,2021-10-25,13 MISCELLANEOUS,CHIEF FINANCIAL OFFICER,ARTHUR J. GALLAGHER INSURANCE BROKERS LIMITED,461304,376.54,GB484746209
BEIS,Met Office,2021-10-18,11 SERVICES,PROGRAMMES,Arup,461102,2646.84,524461265
BEIS,Met Office,2021-10-07,13 MISCELLANEOUS,SERVICES,AUTOMATED DOCUMENT SERVICES LTD,460695,7535,105353449
BEIS,Met Office,2021-10-04,11 SERVICES,TECHNOLOGY AND CIO,BAE SYSTEMS APPLIED INTELLIGENCE LIMITED,460181,10888.43,GB641407169
BEIS,Met Office,2021-10-04,11 SERVICES,TECHNOLOGY AND CIO,BAE SYSTEMS APPLIED INTELLIGENCE LIMITED,460197,10550.28,GB641407169
BEIS,Met Office,2021-10-04,11 SERVICES,TECHNOLOGY AND CIO,BAE SYSTEMS APPLIED INTELLIGENCE LIMITED,460198,6864.45,GB641407169
BEIS,Met Office,2021-10-04,11 SERVICES,TECHNOLOGY AND CIO,BAE SYSTEMS APPLIED INTELLIGENCE LIMITED,460204,12194,GB641407169
BEIS,Met Office,2021-10-04,11 SERVICES,TECHNOLOGY AND CIO,BAE SYSTEMS APPLIED INTELLIGENCE LIMITED,460217,12194,GB641407169
BEIS,Met Office,2021-10-04,11 SERVICES,PROGRAMMES,BAE SYSTEMS APPLIED INTELLIGENCE LIMITED,460218,18760,GB641407169
BEIS,Met Office,2021-10-20,11 SERVICES,TECHNOLOGY AND CIO,BAE SYSTEMS APPLIED INTELLIGENCE LIMITED,460219,11880,GB641407169
BEIS,Met Office,2021-10-04,11 SERVICES,TECHNOLOGY AND CIO,BAE SYSTEMS APPLIED INTELLIGENCE LIMITED,460220,12127.5,GB641407169
BEIS,Met Office,2021-10-04,11 SERVICES,TECHNOLOGY AND CIO,BAE SYSTEMS APPLIED INTELLIGENCE LIMITED,460222,12210,GB641407169
BEIS,Met Office,2021-10-04,11 SERVICES,TECHNOLOGY AND CIO,BAE SYSTEMS APPLIED INTELLIGENCE LIMITED,460223,11220,GB641407169
BEIS,Met Office,2021-10-20,11 SERVICES,TECHNOLOGY AND CIO,BAE SYSTEMS APPLIED INTELLIGENCE LIMITED,460224,11256,GB641407169
BEIS,Met Office,2021-10-04,11 SERVICES,TECHNOLOGY AND CIO,BAE SYSTEMS APPLIED INTELLIGENCE LIMITED,460225,10560,GB641407169
BEIS,Met Office,2021-10-20,11 SERVICES,TECHNOLOGY AND CIO,BAE SYSTEMS APPLIED INTELLIGENCE LIMITED,460226,13530,GB641407169
BEIS,Met Office,2021-10-20,11 SERVICES,TECHNOLOGY AND CIO,BAE SYSTEMS APPLIED INTELLIGENCE LIMITED,460227,10147.5,GB641407169
BEIS,Met Office,2021-10-20,11 SERVICES,TECHNOLOGY AND CIO,BAE SYSTEMS APPLIED INTELLIGENCE LIMITED,460228,12540,GB641407169
BEIS,Met Office,2021-10-04,11 SERVICES,TECHNOLOGY AND CIO,BAE SYSTEMS APPLIED INTELLIGENCE LIMITED,460229,9900,GB641407169
BEIS,Met Office,2021-10-20,11 SERVICES,TECHNOLOGY AND CIO,BAE SYSTEMS APPLIED INTELLIGENCE LIMITED,460230,9450,GB641407169
BEIS,Met Office,2021-10-20,11 SERVICES,TECHNOLOGY AND CIO,BAE SYSTEMS APPLIED INTELLIGENCE LIMITED,460231,9062.42,GB641407169
BEIS,Met Office,2021-10-20,11 SERVICES,TECHNOLOGY AND CIO,BAE SYSTEMS APPLIED INTELLIGENCE LIMITED,460232,8115.6,GB641407169
BEIS,Met Office,2021-10-20,11 SERVICES,TECHNOLOGY AND CIO,BAE SYSTEMS APPLIED INTELLIGENCE LIMITED,460233,14520,GB641407169
BEIS,Met Office,2021-10-20,11 SERVICES,TECHNOLOGY AND CIO,BAE SYSTEMS APPLIED INTELLIGENCE LIMITED,460234,13860,GB641407169
BEIS,Met Office,2021-10-04,11 SERVICES,PROGRAMMES,BAE SYSTEMS APPLIED INTELLIGENCE LIMITED,460235,16415,GB641407169
BEIS,Met Office,2021-10-04,11 SERVICES,PROGRAMMES,BAE SYSTEMS APPLIED INTELLIGENCE LIMITED,460236,14520,GB641407169
BEIS,Met Office,2021-10-04,11 SERVICES,PROGRAMMES,BAE SYSTEMS APPLIED INTELLIGENCE LIMITED,460239,11880,GB641407169
BEIS,Met Office,2021-10-04,11 SERVICES,TECHNOLOGY AND CIO,BAE SYSTEMS APPLIED INTELLIGENCE LIMITED,460240,9738.72,GB641407169
BEIS,Met Office,2021-10-20,11 SERVICES,TECHNOLOGY AND CIO,BAE SYSTEMS APPLIED INTELLIGENCE LIMITED,460241,11361.84,GB641407169
BEIS,Met Office,2021-10-20,11 SERVICES,TECHNOLOGY AND CIO,BAE SYSTEMS APPLIED INTELLIGENCE LIMITED,460255,11902.88,GB641407169
BEIS,Met Office,2021-10-20,11 SERVICES,TECHNOLOGY AND CIO,BAE SYSTEMS APPLIED INTELLIGENCE LIMITED,460256,9738.72,GB641407169
BEIS,Met Office,2021-10-20,11 SERVICES,TECHNOLOGY AND CIO,BAE SYSTEMS APPLIED INTELLIGENCE LIMITED,460259,11902.88,GB641407169
BEIS,Met Office,2021-10-04,11 SERVICES,PROGRAMMES,BAE SYSTEMS APPLIED INTELLIGENCE LIMITED,460260,25441.5,GB641407169
BEIS,Met Office,2021-10-04,11 SERVICES,PROGRAMMES,BAE SYSTEMS APPLIED INTELLIGENCE LIMITED,460262,24205.77,GB641407169
BEIS,Met Office,2021-10-04,11 SERVICES,PROGRAMMES,BAE SYSTEMS APPLIED INTELLIGENCE LIMITED,460263,16282.56,GB641407169
BEIS,Met Office,2021-10-20,11 SERVICES,TECHNOLOGY AND CIO,BAE SYSTEMS APPLIED INTELLIGENCE LIMITED,460265,11880,GB641407169
BEIS,Met Office,2021-10-20,11 SERVICES,TECHNOLOGY AND CIO,BAE SYSTEMS APPLIED INTELLIGENCE LIMITED,460266,13200,GB641407169
BEIS,Met Office,2021-10-04,11 SERVICES,TECHNOLOGY AND CIO,BAE SYSTEMS APPLIED INTELLIGENCE LIMITED,460366,15946,GB641407169
BEIS,Met Office,2021-10-04,11 SERVICES,TECHNOLOGY AND CIO,BAE SYSTEMS APPLIED INTELLIGENCE LIMITED,460367,9497.25,GB641407169
BEIS,Met Office,2021-10-04,11 SERVICES,TECHNOLOGY AND CIO,BAE SYSTEMS APPLIED INTELLIGENCE LIMITED,460368,9262.75,GB641407169
BEIS,Met Office,2021-10-22,11 SERVICES,TECHNOLOGY AND CIO,BAE SYSTEMS APPLIED INTELLIGENCE LIMITED,460369,8980,GB641407169
BEIS,Met Office,2021-10-22,11 SERVICES,TECHNOLOGY AND CIO,BAE SYSTEMS APPLIED INTELLIGENCE LIMITED,460369,6028,GB641407169
BEIS,Met Office,2021-10-04,11 SERVICES,TECHNOLOGY AND CIO,BAE SYSTEMS APPLIED INTELLIGENCE LIMITED,460370,11373.25,GB641407169
BEIS,Met Office,2021-10-22,11 SERVICES,TECHNOLOGY AND CIO,BAE SYSTEMS APPLIED INTELLIGENCE LIMITED,461188,14520,GB641407169
BEIS,Met Office,2021-10-22,11 SERVICES,TECHNOLOGY AND CIO,BAE SYSTEMS APPLIED INTELLIGENCE LIMITED,461190,9735,GB641407169
BEIS,Met Office,2021-10-22,11 SERVICES,TECHNOLOGY AND CIO,BAE SYSTEMS APPLIED INTELLIGENCE LIMITED,461192,11550,GB641407169
BEIS,Met Office,2021-10-26,11 SERVICES,PROGRAMMES,BAE SYSTEMS APPLIED INTELLIGENCE LIMITED,461194,15477,GB641407169
BEIS,Met Office,2021-10-26,11 SERVICES,PROGRAMMES,BAE SYSTEMS APPLIED INTELLIGENCE LIMITED,461196,11220,GB641407169
BEIS,Met Office,2021-10-21,11 SERVICES,PROGRAMMES,BAE SYSTEMS APPLIED INTELLIGENCE LIMITED,461224,14247.24,GB641407169
BEIS,Met Office,2021-10-21,11 SERVICES,PROGRAMMES,BAE SYSTEMS APPLIED INTELLIGENCE LIMITED,461224,20616.08,GB641407169
BEIS,Met Office,2021-10-26,11 SERVICES,PROGRAMMES,BAE SYSTEMS APPLIED INTELLIGENCE LIMITED,461225,20789.34,GB641407169
BEIS,Met Office,2021-10-28,11 SERVICES,TECHNOLOGY AND CIO,BAE SYSTEMS APPLIED INTELLIGENCE LIMITED,461258,10350,GB641407169
BEIS,Met Office,2021-10-28,11 SERVICES,TECHNOLOGY AND CIO,BAE SYSTEMS APPLIED INTELLIGENCE LIMITED,461268,14850,GB641407169
BEIS,Met Office,2021-10-28,11 SERVICES,TECHNOLOGY AND CIO,BAE SYSTEMS APPLIED INTELLIGENCE LIMITED,461269,15125.25,GB641407169
BEIS,Met Office,2021-10-28,11 SERVICES,TECHNOLOGY AND CIO,BAE SYSTEMS APPLIED INTELLIGENCE LIMITED,461270,19463.5,GB641407169
BEIS,Met Office,2021-10-28,11 SERVICES,TECHNOLOGY AND CIO,BAE SYSTEMS APPLIED INTELLIGENCE LIMITED,461271,11220,GB641407169
BEIS,Met Office,2021-10-28,11 SERVICES,TECHNOLOGY AND CIO,BAE SYSTEMS APPLIED INTELLIGENCE LIMITED,461272,12870,GB641407169
BEIS,Met Office,2021-10-28,11 SERVICES,TECHNOLOGY AND CIO,BAE SYSTEMS APPLIED INTELLIGENCE LIMITED,461273,11902.88,GB641407169
BEIS,Met Office,2021-10-28,11 SERVICES,TECHNOLOGY AND CIO,BAE SYSTEMS APPLIED INTELLIGENCE LIMITED,461274,10820.8,GB641407169
BEIS,Met Office,2021-10-28,11 SERVICES,TECHNOLOGY AND CIO,BAE SYSTEMS APPLIED INTELLIGENCE LIMITED,461275,11023.69,GB641407169
BEIS,Met Office,2021-10-22,13 MISCELLANEOUS,SCIENCE,Bangor University,461220,1000,GB728885674
BEIS,Met Office,2021-10-20,11 SERVICES,MARKETS,"BASILIO SOZINHO CUBULA SERVI�OS, E.I.",10410,4442.41,N/A
BEIS,Met Office,2021-10-01,06 ACCOMMODATION,CHIEF FINANCIAL OFFICER,Belfast International Airport Ltd,460569,24018,617777601
BEIS,Met Office,2021-10-20,11 SERVICES,SERVICES,BENTLEY TELECOM LTD (was Bentley Walker),10168,464.44,107995930
BEIS,Met Office,2021-10-20,11 SERVICES,SERVICES,BENTLEY TELECOM LTD (was Bentley Walker),10191,-468.91,107995930
BEIS,Met Office,2021-10-20,07 EQUIPMENT,SERVICES,BENTLEY TELECOM LTD (was Bentley Walker),10380,617.83,107995930
BEIS,Met Office,2021-10-04,13 MISCELLANEOUS,CHIEF FINANCIAL OFFICER,BESA PUBLICATIONS LTD,460497,6144.8,188 7521 61
BEIS,Met Office,2021-10-20,10 EQUIPMENT MAINTENANCE,SERVICES,BFBS MEDIA LTD,460975,6500,GB 118 496 687
BEIS,Met Office,2021-10-20,10 EQUIPMENT MAINTENANCE,SERVICES,BFBS MEDIA LTD,460977,26000,GB 118 496 687
BEIS,Met Office,2021-10-18,06 ACCOMMODATION,CHIEF FINANCIAL OFFICER,BIDVEST NOONAN UK LTD,460986,890.6,GB847176988
BEIS,Met Office,2021-10-18,06 ACCOMMODATION,CHIEF FINANCIAL OFFICER,BIDVEST NOONAN UK LTD,460988,395.68,GB847176988
BEIS,Met Office,2021-10-21,06 ACCOMMODATION,CHIEF FINANCIAL OFFICER,Biffa Waste Services Ltd,461147,274,537911627
BEIS,Met Office,2021-10-21,06 ACCOMMODATION,CHIEF FINANCIAL OFFICER,Biffa Waste Services Ltd,461148,75,537911627
BEIS,Met Office,2021-10-15,11 SERVICES,PROGRAMMES,BJSS LIMITED,459992,7500,613295452
BEIS,Met Office,2021-10-15,11 SERVICES,PROGRAMMES,BJSS LIMITED,460141,18675,613295452
BEIS,Met Office,2021-10-15,11 SERVICES,PROGRAMMES,BJSS LIMITED,460868,5468.75,613295452
BEIS,Met Office,2021-10-18,11 SERVICES,PROGRAMMES,BJSS LIMITED,460983,7407,613295452
BEIS,Met Office,2021-10-15,11 SERVICES,PROGRAMMES,BJSS LIMITED,460984,46325,613295452
BEIS,Met Office,2021-10-15,11 SERVICES,PROGRAMMES,BJSS LIMITED,460985,21750,613295452
BEIS,Met Office,2021-10-05,11 SERVICES,SERVICES,Boc Ltd,460674,18621.86,226556555
BEIS,Met Office,2021-10-15,11 SERVICES,TECHNOLOGY AND CIO,BOXXE,461048,484,734245248
BEIS,Met Office,2021-10-27,07 EQUIPMENT,MARKETS,BRISTOL INDUSTRIAL & RESEARCH ASSOC LTD,461151,12874.4,140651987
BEIS,Met Office,2021-10-04,11 SERVICES,CHIEF FINANCIAL OFFICER,British Red Cross Society,459842,202,706926227
BEIS,Met Office,2021-10-18,11 SERVICES,CHIEF FINANCIAL OFFICER,British Red Cross Society,461017,419,706926227
BEIS,Met Office,2021-10-05,13 MISCELLANEOUS,PEOPLE,BROADBEAN TECHNOLOGY LTD,460669,3910,GB184088778
BEIS,Met Office,2021-10-05,13 MISCELLANEOUS,PEOPLE,BROADBEAN TECHNOLOGY LTD,460669,5940,GB184088778
BEIS,Met Office,2021-10-22,11 SERVICES,PEOPLE,BROADBEAN TECHNOLOGY LTD,461104,1084.05,GB184088778
BEIS,Met Office,2021-10-18,06 ACCOMMODATION,CHIEF FINANCIAL OFFICER,BROXTOWE BOROUGH COUNCIL,461023,247.26,118033013
BEIS,Met Office,2021-10-07,11 SERVICES,OFFICE OF THE CEO,BRYERS LLP,459996,3885,609635917
BEIS,Met Office,2021-10-18,11 SERVICES,CHIEF FINANCIAL OFFICER,BT CONFERENCING,461063,193.33,245719348
BEIS,Met Office,2021-10-05,11 SERVICES,CHIEF FINANCIAL OFFICER,BT GLOBAL SERVICES,460564,12681.69,245719348
BEIS,Met Office,2021-10-19,11 SERVICES,CHIEF FINANCIAL OFFICER,BT GLOBAL SERVICES,461100,11244.25,245719348
BEIS,Met Office,2021-10-26,11 SERVICES,CHIEF FINANCIAL OFFICER,BT GLOBAL SERVICES,461212,14200.24,245719348
BEIS,Met Office,2021-10-11,11 SERVICES,CHIEF FINANCIAL OFFICER,BT plc,460746,11728.17,245719348
BEIS,Met Office,2021-10-27,11 SERVICES,CHIEF FINANCIAL OFFICER,BT plc,461337,876.22,245719348
BEIS,Met Office,2021-10-18,06 ACCOMMODATION,CHIEF FINANCIAL OFFICER,BUSINESS SUPPORT CENTRE LTD,460978,37.62,927365208
BEIS,Met Office,2021-10-06,11 SERVICES,MARKETS,CACI LTD,460724,92029.11,380609841
BEIS,Met Office,2021-10-06,11 SERVICES,MARKETS,CACI LTD,460727,40018.21,380609841
BEIS,Met Office,2021-10-26,06 ACCOMMODATION,CHIEF FINANCIAL OFFICER,CALOR GAS LIMITED,461290,19.61,207610984
BEIS,Met Office,2021-10-26,06 ACCOMMODATION,CHIEF FINANCIAL OFFICER,CALOR GAS LIMITED,461291,34.25,207610984
BEIS,Met Office,2021-10-26,06 ACCOMMODATION,CHIEF FINANCIAL OFFICER,CALOR GAS LIMITED,461292,49.18,207610984
BEIS,Met Office,2021-10-26,06 ACCOMMODATION,CHIEF FINANCIAL OFFICER,CALOR GAS LIMITED,461293,34.25,207610984
BEIS,Met Office,2021-10-26,06 ACCOMMODATION,CHIEF FINANCIAL OFFICER,CALOR GAS LIMITED,461294,34.25,207610984
BEIS,Met Office,2021-10-26,06 ACCOMMODATION,CHIEF FINANCIAL OFFICER,CALOR GAS LIMITED,461296,34.25,207610984
BEIS,Met Office,2021-10-26,06 ACCOMMODATION,CHIEF FINANCIAL OFFICER,CALOR GAS LIMITED,461297,34.25,207610984
BEIS,Met Office,2021-10-13,11 SERVICES,PROGRAMMES,CAMBRIDGE ENVIRONMENTAL RESEARCH CONSULTANTS,460894,115462,GB424750755
BEIS,Met Office,2021-10-13,STOCK,SERVICES,Campbell Scientific Ltd,460440,-0.07,428453933
BEIS,Met Office,2021-10-13,TRADE CREDITORS,SERVICES,Campbell Scientific Ltd,460440,4505.7,428453933
BEIS,Met Office,2021-10-13,11 SERVICES,SERVICES,Campbell Scientific Ltd,460440,17,428453933
BEIS,Met Office,2021-10-13,STOCK,SERVICES,Campbell Scientific Ltd,460625,0,428453933
BEIS,Met Office,2021-10-13,STOCK,SERVICES,Campbell Scientific Ltd,460625,0,428453933
BEIS,Met Office,2021-10-13,TRADE CREDITORS,SERVICES,Campbell Scientific Ltd,460625,9217.8,428453933
BEIS,Met Office,2021-10-13,TRADE CREDITORS,SERVICES,Campbell Scientific Ltd,460625,40837.5,428453933
BEIS,Met Office,2021-10-13,11 SERVICES,SERVICES,Campbell Scientific Ltd,460625,172,428453933
BEIS,Met Office,2021-10-05,13 MISCELLANEOUS,CHIEF FINANCIAL OFFICER,CANON UK LTD,460664,1192.22,523797128
BEIS,Met Office,2021-10-07,13 MISCELLANEOUS,CHIEF FINANCIAL OFFICER,CANON UK LTD,460665,571.56,523797128
BEIS,Met Office,2021-10-18,06 ACCOMMODATION,CHIEF FINANCIAL OFFICER,CARDIFF COMMISSIONING LTD,460979,1350,484190139
BEIS,Met Office,2021-10-27,06 ACCOMMODATION,CHIEF FINANCIAL OFFICER,CARDIFF COMMISSIONING LTD,461339,3600,484190139
BEIS,Met Office,2021-10-01,06 ACCOMMODATION,CHIEF FINANCIAL OFFICER,CARDIFF EXECUTIVE CENTRE LTD,460552,2470,864497378
BEIS,Met Office,2021-10-14,03 STAFF COSTS T&S,SERVICES,CARTUS LTD,457065,250.3,768489458
BEIS,Met Office,2021-10-25,03 STAFF COSTS T&S,SERVICES,CARTUS LTD,460862,5625,768489458
BEIS,Met Office,2021-10-05,08 SOFTWARE LICENCES,PEOPLE,CATALYST IT,460637,2075,978169262
BEIS,Met Office,2021-10-13,06 ACCOMMODATION,CHIEF FINANCIAL OFFICER,CBRE LTD,460656,7500,GB 736 3179 23
BEIS,Met Office,2021-10-06,06 ACCOMMODATION,CHIEF FINANCIAL OFFICER,CBRE MANAGED SERVICES LTD,460699,144085.3,853936883
BEIS,Met Office,2021-10-06,06 ACCOMMODATION,CHIEF FINANCIAL OFFICER,CBRE MANAGED SERVICES LTD,460701,27293.8,853936883
BEIS,Met Office,2021-10-28,FIXTURE & FITTINGS,CHIEF FINANCIAL OFFICER,CBRE MANAGED SERVICES LTD,461036,28567.93,853936883
BEIS,Met Office,2021-10-28,FIXTURE & FITTINGS,CHIEF FINANCIAL OFFICER,CBRE MANAGED SERVICES LTD,461037,29866.85,853936883
BEIS,Met Office,2021-10-27,06 ACCOMMODATION,CHIEF FINANCIAL OFFICER,CBRE MANAGED SERVICES LTD,461358,12783.12,853936883
BEIS,Met Office,2021-10-27,06 ACCOMMODATION,CHIEF FINANCIAL OFFICER,CBRE MANAGED SERVICES LTD,461359,27079.82,853936883
BEIS,Met Office,2021-10-28,06 ACCOMMODATION,CHIEF FINANCIAL OFFICER,CBRE MANAGED SERVICES LTD,461389,144085.3,853936883
BEIS,Met Office,2021-10-28,06 ACCOMMODATION,CHIEF FINANCIAL OFFICER,CBRE MANAGED SERVICES LTD,461390,37494.51,853936883
BEIS,Met Office,2021-10-21,08 SOFTWARE LICENCES,CHIEF FINANCIAL OFFICER,CEMAR,461197,90,915042161
BEIS,Met Office,2021-10-07,11 SERVICES,MARKETS,Cgi It Uk Limited,460737,186682.7,232615194
BEIS,Met Office,2021-10-05,03 STAFF COSTS T&S,SERVICES,CHARLIE'S TRAVEL LTD,460698,384,783848277
BEIS,Met Office,2021-10-05,03 STAFF COSTS T&S,SERVICES,CHARLIE'S TRAVEL LTD,460698,376,783848277
BEIS,Met Office,2021-10-05,03 STAFF COSTS T&S,SERVICES,CHARLIE'S TRAVEL LTD,460698,1795,783848277
BEIS,Met Office,2021-10-05,03 STAFF COSTS T&S,SERVICES,CHARLIE'S TRAVEL LTD,460698,224,783848277
BEIS,Met Office,2021-10-20,07 EQUIPMENT,MARKETS,CIMEL ELECTRONIQUE,23103,11998.47,FR89662017201
BEIS,Met Office,2021-10-05,11 SERVICES,PEOPLE,CIVICA UK LIMITED,460646,40,391171065
BEIS,Met Office,2021-10-11,11 SERVICES,SERVICES,CLOUDREACH EUROPE LIMITED,460896,7300,978187168
BEIS,Met Office,2021-10-13,11 SERVICES,TECHNOLOGY AND CIO,CLOUDREACH EUROPE LIMITED,460897,5150,978187168
BEIS,Met Office,2021-10-19,11 SERVICES,TECHNOLOGY AND CIO,CLOUDREACH EUROPE LIMITED,461043,2483.99,978187168
BEIS,Met Office,2021-10-26,03 STAFF COSTS T&S,CHIEF FINANCIAL OFFICER,CMC Partnership Global,461342,106.7,303694803
BEIS,Met Office,2021-10-26,03 STAFF COSTS T&S,PEOPLE,CMC Partnership Global,461342,106.7,303694803
BEIS,Met Office,2021-10-26,03 STAFF COSTS T&S,PROGRAMMES,CMC Partnership Global,461342,106.71,303694803
BEIS,Met Office,2021-10-26,03 STAFF COSTS T&S,SERVICES,CMC Partnership Global,461342,106.7,303694803
BEIS,Met Office,2021-10-26,03 STAFF COSTS T&S,TECHNOLOGY AND CIO,CMC Partnership Global,461342,106.71,303694803
BEIS,Met Office,2021-10-26,11 SERVICES,CHIEF FINANCIAL OFFICER,CMC Partnership Global,461342,2000,303694803
BEIS,Met Office,2021-10-26,11 SERVICES,PEOPLE,CMC Partnership Global,461342,2000,303694803
BEIS,Met Office,2021-10-26,11 SERVICES,PROGRAMMES,CMC Partnership Global,461342,2000,303694803
BEIS,Met Office,2021-10-26,11 SERVICES,SERVICES,CMC Partnership Global,461342,2000,303694803
BEIS,Met Office,2021-10-26,11 SERVICES,TECHNOLOGY AND CIO,CMC Partnership Global,461342,2000,303694803
BEIS,Met Office,2021-10-15,08 SOFTWARE LICENCES,TECHNOLOGY AND CIO,CODILITY LIMITED,461044,8500,GB981191408
BEIS,Met Office,2021-10-14,11 SERVICES,SERVICES,COLIN DOYLE PLANT HIRE,460968,325,GB 8540 42 343
BEIS,Met Office,2021-10-06,11 SERVICES,SERVICES,COLLECTE LOCALISATION SATELLITES (C.L.S.),22990,7643.19,FR95338034390
BEIS,Met Office,2021-10-06,11 SERVICES,SERVICES,COLLECTE LOCALISATION SATELLITES (C.L.S.),22991,5879.64,FR95338034390
BEIS,Met Office,2021-10-25,FIXTURE & FITTINGS,CHIEF FINANCIAL OFFICER,COMMERCIAL TRANSFER LTD,461161,98.16,891436990
BEIS,Met Office,2021-10-25,FIXTURE & FITTINGS,CHIEF FINANCIAL OFFICER,COMMERCIAL TRANSFER LTD,461161,818,891436990
BEIS,Met Office,2021-10-18,08 SOFTWARE LICENCES,TECHNOLOGY AND CIO,COMPUTACENTER (UK) LTD,460509,14170.14,490334648
BEIS,Met Office,2021-10-04,07 EQUIPMENT,TECHNOLOGY AND CIO,COMPUTACENTER (UK) LTD,460535,25.13,490334648
BEIS,Met Office,2021-10-04,07 EQUIPMENT,TECHNOLOGY AND CIO,COMPUTACENTER (UK) LTD,460535,387.84,490334648
BEIS,Met Office,2021-10-04,07 EQUIPMENT,TECHNOLOGY AND CIO,COMPUTACENTER (UK) LTD,460535,2435.43,490334648
BEIS,Met Office,2021-10-04,08 SOFTWARE LICENCES,TECHNOLOGY AND CIO,COMPUTACENTER (UK) LTD,460535,1208.84,490334648
BEIS,Met Office,2021-10-04,08 SOFTWARE LICENCES,TECHNOLOGY AND CIO,COMPUTACENTER (UK) LTD,460535,3878.82,490334648
BEIS,Met Office,2021-10-18,08 SOFTWARE LICENCES,TECHNOLOGY AND CIO,COMPUTACENTER (UK) LTD,460540,7497.97,490334648
BEIS,Met Office,2021-10-04,07 EQUIPMENT,SERVICES,COMPUTACENTER (UK) LTD,460562,1758.75,490334648
BEIS,Met Office,2021-10-18,08 SOFTWARE LICENCES,TECHNOLOGY AND CIO,COMPUTACENTER (UK) LTD,460816,-14170.14,490334648
BEIS,Met Office,2021-10-18,08 SOFTWARE LICENCES,TECHNOLOGY AND CIO,COMPUTACENTER (UK) LTD,460818,-7497.97,490334648
BEIS,Met Office,2021-10-18,07 EQUIPMENT,TECHNOLOGY AND CIO,COMPUTACENTER (UK) LTD,460957,-10.23,490334648
BEIS,Met Office,2021-10-18,FIXTURE & FITTINGS,CHIEF FINANCIAL OFFICER,COMPUTACENTER (UK) LTD,461045,11206.08,490334648
BEIS,Met Office,2021-10-18,08 SOFTWARE LICENCES,TECHNOLOGY AND CIO,COMPUTACENTER (UK) LTD,461047,4697.56,490334648
BEIS,Met Office,2021-10-25,07 EQUIPMENT,TECHNOLOGY AND CIO,COMPUTACENTER (UK) LTD,461267,3039,490334648
BEIS,Met Office,2021-10-26,10 EQUIPMENT MAINTENANCE,TECHNOLOGY AND CIO,COMPUTACENTER (UK) LTD,461350,3117.81,490334648
BEIS,Met Office,2021-10-26,10 EQUIPMENT MAINTENANCE,TECHNOLOGY AND CIO,COMPUTACENTER (UK) LTD,461351,43340.49,490334648
BEIS,Met Office,2021-10-28,08 SOFTWARE LICENCES,TECHNOLOGY AND CIO,COMPUTACENTER (UK) LTD,461421,24090.92,490334648
BEIS,Met Office,2021-10-15,06 ACCOMMODATION,CHIEF FINANCIAL OFFICER,CORONA ENERGY LTD,460958,9827.16,577704800
BEIS,Met Office,2021-10-15,06 ACCOMMODATION,CHIEF FINANCIAL OFFICER,CORONA ENERGY LTD,460960,408.82,577704800
BEIS,Met Office,2021-10-15,06 ACCOMMODATION,CHIEF FINANCIAL OFFICER,CORONA ENERGY LTD,460961,411.64,577704800
BEIS,Met Office,2021-10-26,06 ACCOMMODATION,CHIEF FINANCIAL OFFICER,CORONA ENERGY LTD,461180,11407.33,577704800
BEIS,Met Office,2021-10-18,FIXTURE & FITTINGS,CHIEF FINANCIAL OFFICER,CORPORATE MOVES C/O SPACE SOLUTIONS,460982,190,907839882
BEIS,Met Office,2021-10-18,FIXTURE & FITTINGS,CHIEF FINANCIAL OFFICER,CORPORATE MOVES C/O SPACE SOLUTIONS,460982,590,907839882
BEIS,Met Office,2021-10-18,11 SERVICES,MARKETS,CULVERWELL ASSOCIATES LTD,461095,3500,386 6119 65
BEIS,Met Office,2021-10-11,06 ACCOMMODATION,CHIEF FINANCIAL OFFICER,D&G OFFICE SERVICES LTD,460879,276.25,272997547
BEIS,Met Office,2021-10-01,06 ACCOMMODATION,CHIEF FINANCIAL OFFICER,DARD CORPORATE ACCOUNT,460438,15.34,-
BEIS,Met Office,2021-10-27,11 SERVICES,CHIEF FINANCIAL OFFICER,DBS FINANCE RECEIPTS CTS,23197,165.09,888805068
BEIS,Met Office,2021-10-25,03 STAFF COSTS T&S,SERVICES,DBS FINANCE RECEIPTS CTS,461223,5621,888805068
BEIS,Met Office,2021-10-06,10 EQUIPMENT MAINTENANCE,TECHNOLOGY AND CIO,DCU,460745,25414.19,888813854
BEIS,Met Office,2021-10-07,10 EQUIPMENT MAINTENANCE,TECHNOLOGY AND CIO,DCU,460821,29019.73,888813854
BEIS,Met Office,2021-10-13,11 SERVICES,MARKETS,DESIGNAMITE LTD,460631,350,817819989
BEIS,Met Office,2021-10-21,11 SERVICES,MARKETS,DESIGNAMITE LTD,460880,525,817819989
BEIS,Met Office,2021-10-27,11 SERVICES,MARKETS,DESIGNAMITE LTD,460972,560,817819989
BEIS,Met Office,2021-10-27,11 SERVICES,MARKETS,DESIGNAMITE LTD,460998,280,817819989
BEIS,Met Office,2021-10-26,06 ACCOMMODATION,CHIEF FINANCIAL OFFICER,Devon County Council,461114,96590,142208113
BEIS,Met Office,2021-10-25,07 EQUIPMENT,TECHNOLOGY AND CIO,DIGITAL COMMUNICATIONS SYSTEMS LIMITED,458442,546,GB 556 1971 19
BEIS,Met Office,2021-10-25,11 SERVICES,TECHNOLOGY AND CIO,DIGITAL COMMUNICATIONS SYSTEMS LIMITED,458442,450,GB 556 1971 19
BEIS,Met Office,2021-10-14,11 SERVICES,CHIEF FINANCIAL OFFICER,DIGITAL COMMUNICATIONS SYSTEMS LIMITED,460980,3521.73,GB 556 1971 19
BEIS,Met Office,2021-10-18,08 SOFTWARE LICENCES,OFFICE OF THE CEO,DILIGENT BOARDBOOKS LIMITED,461096,265,929451011
BEIS,Met Office,2021-10-06,11 SERVICES,MARKETS,DJS RESEARCH LIMITED,460743,14250,775718779
BEIS,Met Office,2021-10-07,13 MISCELLANEOUS,CHIEF FINANCIAL OFFICER,EAST ANGLIAN WATER COOLER CO,460630,17.6,676668178
BEIS,Met Office,2021-10-29,11 SERVICES,SERVICES,EAST RIDING OF YORKSHIRE COUNCIL IHA,461440,1687.4,647471123
BEIS,Met Office,2021-10-27,11 SERVICES,MARKETS,ECMWF,23013,1495.18,NOTVATREG
BEIS,Met Office,2021-10-27,11 SERVICES,MARKETS,ECMWF,23014,3556.85,NOTVATREG
BEIS,Met Office,2021-10-27,11 SERVICES,MARKETS,ECMWF,23015,30077.54,NOTVATREG
BEIS,Met Office,2021-10-27,11 SERVICES,MARKETS,ECMWF,23016,1358.39,NOTVATREG
BEIS,Met Office,2021-10-27,11 SERVICES,MARKETS,ECMWF,23017,286.79,NOTVATREG
BEIS,Met Office,2021-10-27,11 SERVICES,MARKETS,ECMWF,23018,116.3,NOTVATREG
BEIS,Met Office,2021-10-27,11 SERVICES,MARKETS,ECMWF,23019,700.91,NOTVATREG
BEIS,Met Office,2021-10-27,11 SERVICES,MARKETS,ECMWF,23020,1107.88,NOTVATREG
BEIS,Met Office,2021-10-27,11 SERVICES,MARKETS,ECMWF,23021,1912.14,NOTVATREG
BEIS,Met Office,2021-10-27,11 SERVICES,MARKETS,ECMWF,23022,297.19,NOTVATREG
BEIS,Met Office,2021-10-27,11 SERVICES,MARKETS,ECMWF,23023,9807.89,NOTVATREG
BEIS,Met Office,2021-10-27,11 SERVICES,MARKETS,ECMWF,23024,9947.4,NOTVATREG
BEIS,Met Office,2021-10-27,11 SERVICES,MARKETS,ECMWF,23025,1711.38,NOTVATREG
BEIS,Met Office,2021-10-27,11 SERVICES,MARKETS,ECMWF,23026,2295.63,NOTVATREG
BEIS,Met Office,2021-10-27,11 SERVICES,MARKETS,ECMWF,23027,1249.09,NOTVATREG
BEIS,Met Office,2021-10-27,11 SERVICES,MARKETS,ECMWF,23028,10134.82,NOTVATREG
BEIS,Met Office,2021-10-27,11 SERVICES,MARKETS,ECMWF,23029,4278.46,NOTVATREG
BEIS,Met Office,2021-10-27,11 SERVICES,MARKETS,ECMWF,23030,20269.65,NOTVATREG
BEIS,Met Office,2021-10-27,11 SERVICES,MARKETS,ECMWF,23031,2994.92,NOTVATREG
BEIS,Met Office,2021-10-27,11 SERVICES,MARKETS,ECMWF,23032,20269.65,NOTVATREG
BEIS,Met Office,2021-10-27,11 SERVICES,MARKETS,ECMWF,23033,427.85,NOTVATREG
BEIS,Met Office,2021-10-27,11 SERVICES,MARKETS,ECMWF,23034,5059.51,NOTVATREG
BEIS,Met Office,2021-10-27,11 SERVICES,MARKETS,ECMWF,23035,30077.54,NOTVATREG
BEIS,Met Office,2021-10-27,11 SERVICES,MARKETS,ECMWF,23036,1048.55,NOTVATREG
BEIS,Met Office,2021-10-27,11 SERVICES,MARKETS,ECMWF,23037,391.21,NOTVATREG
BEIS,Met Office,2021-10-27,11 SERVICES,MARKETS,ECMWF,23038,3908.98,NOTVATREG
BEIS,Met Office,2021-10-27,11 SERVICES,MARKETS,ECMWF,23039,1016.13,NOTVATREG
BEIS,Met Office,2021-10-27,11 SERVICES,MARKETS,ECMWF,23040,427.85,NOTVATREG
BEIS,Met Office,2021-10-27,11 SERVICES,MARKETS,ECMWF,23041,7436.08,NOTVATREG
BEIS,Met Office,2021-10-27,11 SERVICES,MARKETS,ECMWF,23042,9200.9,NOTVATREG
BEIS,Met Office,2021-10-27,11 SERVICES,MARKETS,ECMWF,23043,30077.54,NOTVATREG
BEIS,Met Office,2021-10-27,11 SERVICES,MARKETS,ECMWF,23044,1813.13,NOTVATREG
BEIS,Met Office,2021-10-27,11 SERVICES,MARKETS,ECMWF,23045,715.11,NOTVATREG
BEIS,Met Office,2021-10-27,11 SERVICES,MARKETS,ECMWF,23046,3928.65,NOTVATREG
BEIS,Met Office,2021-10-27,11 SERVICES,MARKETS,ECMWF,23047,442.26,NOTVATREG
BEIS,Met Office,2021-10-27,11 SERVICES,MARKETS,ECMWF,23048,2567.07,NOTVATREG
BEIS,Met Office,2021-10-27,11 SERVICES,MARKETS,ECMWF,23049,30077.54,NOTVATREG
BEIS,Met Office,2021-10-27,11 SERVICES,MARKETS,ECMWF,23050,12407.52,NOTVATREG
BEIS,Met Office,2021-10-27,11 SERVICES,MARKETS,ECMWF,23051,254.76,NOTVATREG
BEIS,Met Office,2021-10-27,11 SERVICES,MARKETS,ECMWF,23052,495.93,NOTVATREG
BEIS,Met Office,2021-10-27,11 SERVICES,MARKETS,ECMWF,23053,30077.54,NOTVATREG
BEIS,Met Office,2021-10-27,11 SERVICES,MARKETS,ECMWF,23054,855.69,NOTVATREG
BEIS,Met Office,2021-10-27,11 SERVICES,MARKETS,ECMWF,23055,671.82,NOTVATREG
BEIS,Met Office,2021-10-27,11 SERVICES,MARKETS,ECMWF,23056,552.32,NOTVATREG
BEIS,Met Office,2021-10-27,11 SERVICES,MARKETS,ECMWF,23057,1593.65,NOTVATREG
BEIS,Met Office,2021-10-27,11 SERVICES,MARKETS,ECMWF,23058,10861.66,NOTVATREG
BEIS,Met Office,2021-10-27,11 SERVICES,MARKETS,ECMWF,23059,1076.14,NOTVATREG
BEIS,Met Office,2021-10-27,11 SERVICES,MARKETS,ECMWF,23060,291.65,NOTVATREG
BEIS,Met Office,2021-10-27,11 SERVICES,MARKETS,ECMWF,23061,30077.54,NOTVATREG
BEIS,Met Office,2021-10-27,11 SERVICES,MARKETS,ECMWF,23062,1711.38,NOTVATREG
BEIS,Met Office,2021-10-27,11 SERVICES,MARKETS,ECMWF,23063,-5.43,NOTVATREG
BEIS,Met Office,2021-10-27,11 SERVICES,MARKETS,ECMWF,23064,30077.54,NOTVATREG
BEIS,Met Office,2021-10-27,11 SERVICES,MARKETS,ECMWF,23065,4182.58,NOTVATREG
BEIS,Met Office,2021-10-27,11 SERVICES,MARKETS,ECMWF,23066,30077.54,NOTVATREG
BEIS,Met Office,2021-10-27,11 SERVICES,MARKETS,ECMWF,23067,-1783.81,NOTVATREG
BEIS,Met Office,2021-10-27,11 SERVICES,MARKETS,ECMWF,23068,1016.13,NOTVATREG
BEIS,Met Office,2021-10-27,11 SERVICES,MARKETS,ECMWF,23069,-964.27,NOTVATREG
BEIS,Met Office,2021-10-27,11 SERVICES,MARKETS,ECMWF,23070,19942.72,NOTVATREG
BEIS,Met Office,2021-10-27,11 SERVICES,MARKETS,ECMWF,23071,9279.31,NOTVATREG
BEIS,Met Office,2021-10-27,11 SERVICES,MARKETS,ECMWF,23072,1900.52,NOTVATREG
BEIS,Met Office,2021-10-27,11 SERVICES,MARKETS,ECMWF,23073,8556.91,NOTVATREG
BEIS,Met Office,2021-10-27,11 SERVICES,MARKETS,ECMWF,23074,28451.73,NOTVATREG
BEIS,Met Office,2021-10-27,11 SERVICES,MARKETS,ECMWF,23075,540.57,NOTVATREG
BEIS,Met Office,2021-10-27,11 SERVICES,MARKETS,ECMWF,23076,30077.54,NOTVATREG
BEIS,Met Office,2021-10-27,11 SERVICES,MARKETS,ECMWF,23077,1873.14,NOTVATREG
BEIS,Met Office,2021-10-27,11 SERVICES,MARKETS,ECMWF,23078,30077.54,NOTVATREG
BEIS,Met Office,2021-10-27,11 SERVICES,MARKETS,ECMWF,23079,30077.54,NOTVATREG
BEIS,Met Office,2021-10-27,11 SERVICES,MARKETS,ECMWF,23080,28451.73,NOTVATREG
BEIS,Met Office,2021-10-27,11 SERVICES,MARKETS,ECMWF,23081,28451.73,NOTVATREG
BEIS,Met Office,2021-10-27,11 SERVICES,MARKETS,ECMWF,23082,3580.77,NOTVATREG
BEIS,Met Office,2021-10-27,11 SERVICES,MARKETS,ECMWF,23083,946.57,NOTVATREG
BEIS,Met Office,2021-10-27,11 SERVICES,MARKETS,ECMWF,23084,538.17,NOTVATREG
BEIS,Met Office,2021-10-27,11 SERVICES,MARKETS,ECMWF,23085,9807.89,NOTVATREG
BEIS,Met Office,2021-10-20,11 SERVICES,MARKETS,ECOMET,22995,227244.18,EXEMPT
BEIS,Met Office,2021-10-01,13 MISCELLANEOUS,CHIEF FINANCIAL OFFICER,EDEN SPRINGS UK LTD,460487,621.61,232160411
BEIS,Met Office,2021-10-13,11 SERVICES,PEOPLE,EDENRED - CHILDCARE VOUCHERS,460560,-243,649 503 520
BEIS,Met Office,2021-10-13,11 SERVICES,PEOPLE,EDENRED - CHILDCARE VOUCHERS,460861,243,649 503 520
BEIS,Met Office,2021-10-13,11 SERVICES,PEOPLE,EDENRED - CHILDCARE VOUCHERS,460867,13129.5,649 503 520
BEIS,Met Office,2021-10-13,CYCLESCHEME,OTHER,EDENRED UK (CYCLESCHEME),460876,623.61,649 503 520
BEIS,Met Office,2021-10-18,06 ACCOMMODATION,CHIEF FINANCIAL OFFICER,EDF ENERGY CUSTOMERS PLC,460171,6924.47,523041202
BEIS,Met Office,2021-10-11,06 ACCOMMODATION,CHIEF FINANCIAL OFFICER,EDF ENERGY CUSTOMERS PLC,460172,6043.85,523041202
BEIS,Met Office,2021-10-01,06 ACCOMMODATION,CHIEF FINANCIAL OFFICER,EDF ENERGY CUSTOMERS PLC,460523,135624.05,523041202
BEIS,Met Office,2021-10-01,06 ACCOMMODATION,CHIEF FINANCIAL OFFICER,EDF ENERGY CUSTOMERS PLC,460545,-134914.25,523041202
BEIS,Met Office,2021-10-11,06 ACCOMMODATION,CHIEF FINANCIAL OFFICER,EDF ENERGY CUSTOMERS PLC,460739,138778.6,523041202
BEIS,Met Office,2021-10-12,06 ACCOMMODATION,CHIEF FINANCIAL OFFICER,EDF ENERGY CUSTOMERS PLC,460859,133336.07,523041202
BEIS,Met Office,2021-10-12,06 ACCOMMODATION,CHIEF FINANCIAL OFFICER,EDF ENERGY CUSTOMERS PLC,460860,380596.42,523041202
BEIS,Met Office,2021-10-06,11 SERVICES,CHIEF FINANCIAL OFFICER,EIR,23004,52.16,4736919B
BEIS,Met Office,2021-10-27,11 SERVICES,CHIEF FINANCIAL OFFICER,EIR,23162,51.4,4736919B
BEIS,Met Office,2021-10-29,10 EQUIPMENT MAINTENANCE,SERVICES,ELASTICSEARCH LTD,460675,670.22,155790484
BEIS,Met Office,2021-10-05,03 STAFF COSTS T&S,CHIEF FINANCIAL OFFICER,ENTERPRISE RENT A CAR UK LTD,460680,2079.62,215557314
BEIS,Met Office,2021-10-15,03 STAFF COSTS T&S,CHIEF FINANCIAL OFFICER,ENTERPRISE RENT A CAR UK LTD,461024,427.12,215557314
BEIS,Met Office,2021-10-15,03 STAFF COSTS T&S,CHIEF FINANCIAL OFFICER,ENTERPRISE RENT A CAR UK LTD,461025,1969.32,215557314
BEIS,Met Office,2021-10-19,03 STAFF COSTS T&S,CHIEF FINANCIAL OFFICER,ENTERPRISE RENT A CAR UK LTD,461118,1448.11,215557314
BEIS,Met Office,2021-10-25,03 STAFF COSTS T&S,CHIEF FINANCIAL OFFICER,ENTERPRISE RENT A CAR UK LTD,461298,1268.85,215557314
BEIS,Met Office,2021-10-27,07 EQUIPMENT,MARKETS,ENVIRO TECHNOLOGY SERVICES LTD,461387,68021,GB 448 4321 46
BEIS,Met Office,2021-10-27,07 EQUIPMENT,MARKETS,ENVIRO TECHNOLOGY SERVICES LTD,461388,78276,GB 448 4321 46
BEIS,Met Office,2021-10-05,08 SOFTWARE LICENCES,TECHNOLOGY AND CIO,Esri (Uk) Ltd,460636,86122,787430791
BEIS,Met Office,2021-10-06,11 SERVICES,PROGRAMMES,Esri (Uk) Ltd,460696,15321.17,787430791
BEIS,Met Office,2021-10-11,08 SOFTWARE LICENCES,SERVICES,Esri (Uk) Ltd,460891,154.16,787430791
BEIS,Met Office,2021-10-13,11 SERVICES,MARKETS,"EUTELSAT MADERIA, UNIPESSOAL LDA",22980,446.04,PT511283733
BEIS,Met Office,2021-10-13,11 SERVICES,SERVICES,"EUTELSAT MADERIA, UNIPESSOAL LDA",22980,1784.15,PT511283733
BEIS,Met Office,2021-10-20,11 SERVICES,MARKETS,"EUTELSAT MADERIA, UNIPESSOAL LDA",23111,438.3,PT511283733
BEIS,Met Office,2021-10-20,11 SERVICES,SERVICES,"EUTELSAT MADERIA, UNIPESSOAL LDA",23111,1753.21,PT511283733
BEIS,Met Office,2021-10-06,11 SERVICES,SERVICES,"EUTELSAT, S.A.",22982,2927.66,-
BEIS,Met Office,2021-10-28,06 ACCOMMODATION,CHIEF FINANCIAL OFFICER,Exeter City Council,453750,140288,142335594
BEIS,Met Office,2021-10-11,11 SERVICES,PEOPLE,Exeter College,460817,3748,125451632
BEIS,Met Office,2021-10-13,11 SERVICES,CHIEF FINANCIAL OFFICER,EXPONENTIAL-E,460878,1218.61,GB798572653
BEIS,Met Office,2021-10-13,PLANT AND EQUIPMENT,SERVICES,EXSIL,22975,5719.17,-
BEIS,Met Office,2021-10-13,PLANT AND EQUIPMENT,SERVICES,EXSIL,22975,5987.76,-
BEIS,Met Office,2021-10-13,PLANT AND EQUIPMENT,SERVICES,EXSIL,22975,1145.55,-
BEIS,Met Office,2021-10-13,PLANT AND EQUIPMENT,SERVICES,EXSIL,22975,759.41,-
BEIS,Met Office,2021-10-06,11 SERVICES,MARKETS,FCDO,460565,873.48,888813560
BEIS,Met Office,2021-10-14,04 CONTRACTORS,TECHNOLOGY AND CIO,FDM GROUP LIMITED,460963,5616,583540529
BEIS,Met Office,2021-10-14,04 CONTRACTORS,TECHNOLOGY AND CIO,FDM GROUP LIMITED,460964,6210,583540529
BEIS,Met Office,2021-10-14,04 CONTRACTORS,TECHNOLOGY AND CIO,FDM GROUP LIMITED,460965,3900,583540529
BEIS,Met Office,2021-10-14,04 CONTRACTORS,TECHNOLOGY AND CIO,FDM GROUP LIMITED,460966,5130,583540529
BEIS,Met Office,2021-10-06,11 SERVICES,SERVICES,FLYFORM LTD,460641,10900,237333808
BEIS,Met Office,2021-10-06,05 CONSULTANTS,PROGRAMMES,FLYFORM LTD,460642,67115,237333808
BEIS,Met Office,2021-10-06,06 ACCOMMODATION,CHIEF FINANCIAL OFFICER,FMS INTERIOR SERVICES LTD,460693,333.92,922056940
BEIS,Met Office,2021-10-11,13 MISCELLANEOUS,OFFICE OF THE CEO,FOUNDATION FOR SCIENCE & TECHNOLOGY,460214,3065,447089719
BEIS,Met Office,2021-10-26,11 SERVICES,PEOPLE,FRANCIS CLARK LLP,461334,2300,855910212
BEIS,Met Office,2021-10-25,11 SERVICES,CHIEF FINANCIAL OFFICER,FSI (FM SOLUTIONS) LTD,461216,5423.93,166398173
BEIS,Met Office,2021-10-25,11 SERVICES,CHIEF FINANCIAL OFFICER,FSI (FM SOLUTIONS) LTD,461217,10836.72,166398173
BEIS,Met Office,2021-10-18,11 SERVICES,CHIEF FINANCIAL OFFICER,G4S FIRE & SECURITY SYSTEMS (UK),461039,878.16,238560256
BEIS,Met Office,2021-10-14,11 SERVICES,CHIEF FINANCIAL OFFICER,GAMMA TELECOM LTD,460956,1405.18,823820344
BEIS,Met Office,2021-10-14,11 SERVICES,CHIEF FINANCIAL OFFICER,GAMMA TELECOM LTD,460956,27322.78,823820344
BEIS,Met Office,2021-10-11,11 SERVICES,CHIEF FINANCIAL OFFICER,GB GROUP PLC,460836,394.01,539716218
BEIS,Met Office,2021-10-14,04 CONTRACTORS,TECHNOLOGY AND CIO,GCS IT RECRUITMENT SPECIALISTS LTD,460962,13825,896156575
BEIS,Met Office,2021-10-18,11 SERVICES,CHIEF FINANCIAL OFFICER,GIBRALTAR NYNEX COMMUNICATIONS LTD,460987,702,NOVAT
BEIS,Met Office,2021-10-21,11 SERVICES,MARKETS,Health & Safety Laboratory,461184,15109,888810177
BEIS,Met Office,2021-10-29,13 MISCELLANEOUS,PEOPLE,HEALTH MANAGEMENT LTD,461289,4292.18,792250621
BEIS,Met Office,2021-10-13,10 EQUIPMENT MAINTENANCE,TECHNOLOGY AND CIO,Hewlett Packard Ltd,460834,385034.34,314149679
BEIS,Met Office,2021-10-13,10 EQUIPMENT MAINTENANCE,TECHNOLOGY AND CIO,Hewlett Packard Ltd,460834,2840.66,314149679
BEIS,Met Office,2021-10-13,10 EQUIPMENT MAINTENANCE,TECHNOLOGY AND CIO,Hewlett Packard Ltd,460834,629000,314149679
BEIS,Met Office,2021-10-01,06 ACCOMMODATION,MARKETS,HIGHLANDS & ISLANDS AIRPORTS LTD.,460568,95.34,945667772
BEIS,Met Office,2021-10-27,PAYE AND VAT,OTHER,HMRC,461357,4937372.53,-
BEIS,Met Office,2021-10-05,11 SERVICES,PROGRAMMES,HOGAN LOVELLS INTERNATIONAL LLP,460638,329343.07,GB123371543
BEIS,Met Office,2021-10-04,11 SERVICES,PROGRAMMES,HOGAN LOVELLS INTERNATIONAL LLP,460639,6999.5,GB123371543
BEIS,Met Office,2021-10-04,11 SERVICES,PROGRAMMES,HOGAN LOVELLS INTERNATIONAL LLP,460639,6711.36,GB123371543
BEIS,Met Office,2021-10-04,11 SERVICES,PROGRAMMES,HOGAN LOVELLS INTERNATIONAL LLP,460640,13723,GB123371543
BEIS,Met Office,2021-10-11,11 SERVICES,PROGRAMMES,IAME LTD,460887,250,140304468
BEIS,Met Office,2021-10-11,11 SERVICES,PROGRAMMES,IAME LTD,460889,6400,140304468
BEIS,Met Office,2021-10-04,10 EQUIPMENT MAINTENANCE,TECHNOLOGY AND CIO,Ibm United Kingdom Ltd,460628,60725.48,107328000
BEIS,Met Office,2021-10-05,08 SOFTWARE LICENCES,TECHNOLOGY AND CIO,Ibm United Kingdom Ltd,460679,8865.7,107328000
BEIS,Met Office,2021-10-20,11 SERVICES,TECHNOLOGY AND CIO,Ibm United Kingdom Ltd,461119,6184.16,107328000
BEIS,Met Office,2021-10-13,11 SERVICES,MARKETS,IGAD CLIMATE PREDICTION & APPLICATIONS CNTR,460749,7618.67,-
BEIS,Met Office,2021-10-19,13 MISCELLANEOUS,SERVICES,IMAGETEK SYSTEMS LTD,461110,1413.56,GB586331424
BEIS,Met Office,2021-10-21,11 SERVICES,MARKETS,INK COPYWRITERS LTD,461099,1000,850847214
BEIS,Met Office,2021-10-06,11 SERVICES,SERVICES,INMARSAT SOLUTIONS (CANADA) INC,460689,1782.63,766144223
BEIS,Met Office,2021-10-06,08 SOFTWARE LICENCES,MARKETS,"INTELLOVATIONS, LLC",10392,1497.84,-
BEIS,Met Office,2021-10-19,11 SERVICES,CHIEF FINANCIAL OFFICER,INTEROUTE COMMUNICATIONS LIMITED,461101,4931.94,832 7071 39
BEIS,Met Office,2021-10-22,07 EQUIPMENT,SERVICES,ISOTHERMAL TECHNOLOGY LTD,461162,613,325108979
BEIS,Met Office,2021-10-22,07 EQUIPMENT,SERVICES,ISOTHERMAL TECHNOLOGY LTD,461162,851,325108979
BEIS,Met Office,2021-10-20,06 ACCOMMODATION,CHIEF FINANCIAL OFFICER,JAMES & MARCIA BENJAMIN,460742,520,-
BEIS,Met Office,2021-10-25,11 SERVICES,CHIEF FINANCIAL OFFICER,JERSEY TELECOM,461213,1233.37,NOTVATREG
BEIS,Met Office,2021-10-25,11 SERVICES,CHIEF FINANCIAL OFFICER,JERSEY TELECOM,461213,50.95,NOTVATREG
BEIS,Met Office,2021-10-22,FIXTURE & FITTINGS,CHIEF FINANCIAL OFFICER,KINGSPAN ACCESS FLOORS LTD,461152,120,450600489
BEIS,Met Office,2021-10-22,FIXTURE & FITTINGS,CHIEF FINANCIAL OFFICER,KINGSPAN ACCESS FLOORS LTD,461152,1364.4,450600489
BEIS,Met Office,2021-10-18,11 SERVICES,SERVICES,Landmark Information Group Ltd,461089,49018.5,634509735
BEIS,Met Office,2021-10-18,11 SERVICES,SERVICES,Landmark Information Group Ltd,461091,40308.1,634509735
BEIS,Met Office,2021-10-18,11 SERVICES,SERVICES,Landmark Information Group Ltd,461092,36889,634509735
BEIS,Met Office,2021-10-18,11 SERVICES,SERVICES,Landmark Information Group Ltd,461093,42094.5,634509735
BEIS,Met Office,2021-10-18,11 SERVICES,PROGRAMMES,Landmark Information Group Ltd,461094,9750,634509735
BEIS,Met Office,2021-10-06,11 SERVICES,PEOPLE,LB TRAINING LTD,460495,395,-
BEIS,Met Office,2021-10-27,08 SOFTWARE LICENCES,TECHNOLOGY AND CIO,LINBIT HA-SOLUTIONS GMBH,23098,3405.65,ATU64320988
BEIS,Met Office,2021-10-05,11 SERVICES,PEOPLE,LUMESSE LTD,460691,2400,115096236
BEIS,Met Office,2021-10-04,07 EQUIPMENT,SERVICES,M C ENGINEERING SERVICES,460635,1242,813172066
BEIS,Met Office,2021-10-04,07 EQUIPMENT,SERVICES,M C ENGINEERING SERVICES,460635,1380,813172066
BEIS,Met Office,2021-10-27,12 INTERNATIONAL,MARKETS,MACITECHSY SOLUTIONS,461222,640,-
BEIS,Met Office,2021-10-11,04 CONTRACTORS,PEOPLE,MATRIX SCM LIMITED,460831,276112.99,249 5734 68
BEIS,Met Office,2021-10-18,04 CONTRACTORS,PEOPLE,MATRIX SCM LIMITED,461040,218516.29,249 5734 68
BEIS,Met Office,2021-10-22,04 CONTRACTORS,PEOPLE,MATRIX SCM LIMITED,461221,234970.11,249 5734 68
BEIS,Met Office,2021-10-27,11 SERVICES,PROGRAMMES,MAURITIUS METEOROLOGICAL SOCIETY,460390,9500,-
BEIS,Met Office,2021-10-27,11 SERVICES,CHIEF FINANCIAL OFFICER,MAWASEM LTD,461356,127110.43,197694731
BEIS,Met Office,2021-10-15,11 SERVICES,MARKETS,MERKLE UK THREE LTD T/A MERKLE PERISCOPIX,457018,8315,843316243
BEIS,Met Office,2021-10-05,06 ACCOMMODATION,CHIEF FINANCIAL OFFICER,Mitie Landscapes Ltd,460718,90.33,GB 416 706 654
BEIS,Met Office,2021-10-12,06 ACCOMMODATION,CHIEF FINANCIAL OFFICER,Mitie Landscapes Ltd,460883,55.68,GB 416 706 654
BEIS,Met Office,2021-10-11,06 ACCOMMODATION,CHIEF FINANCIAL OFFICER,Mitie Landscapes Ltd,460893,5904.87,GB 416 706 654
BEIS,Met Office,2021-10-07,11 SERVICES,CHIEF FINANCIAL OFFICER,MITIE SECURITY LTD,460405,10263.36,416706654
BEIS,Met Office,2021-10-07,11 SERVICES,CHIEF FINANCIAL OFFICER,MITIE SECURITY LTD,460406,20526.35,416706654
BEIS,Met Office,2021-10-06,11 SERVICES,CHIEF FINANCIAL OFFICER,MITIE SECURITY LTD,460672,1311.72,416706654
BEIS,Met Office,2021-10-06,11 SERVICES,CHIEF FINANCIAL OFFICER,MITIE SECURITY LTD,460673,849.75,416706654
BEIS,Met Office,2021-10-06,11 SERVICES,CHIEF FINANCIAL OFFICER,MITIE SECURITY LTD,460694,1441.12,416706654
BEIS,Met Office,2021-10-27,11 SERVICES,CHIEF FINANCIAL OFFICER,MITIE SECURITY LTD,461360,10294.23,416706654
BEIS,Met Office,2021-10-27,11 SERVICES,CHIEF FINANCIAL OFFICER,MITIE SECURITY LTD,461361,20588.08,416706654
BEIS,Met Office,2021-10-20,11 SERVICES,MARKETS,MOMENTUM INCORPORATED,461144,6400,598958541
BEIS,Met Office,2021-10-05,06 ACCOMMODATION,CHIEF FINANCIAL OFFICER,MORAY COUNCIL,460632,170.82,663755506
BEIS,Met Office,2021-10-21,06 ACCOMMODATION,CHIEF FINANCIAL OFFICER,MORAY COUNCIL,461145,2925,663755506
BEIS,Met Office,2021-10-25,06 ACCOMMODATION,CHIEF FINANCIAL OFFICER,MORSAFE LTD,461288,1150,856010741
BEIS,Met Office,2021-10-01,11 SERVICES,CHIEF FINANCIAL OFFICER,Morton Fraser LLP,460599,3500,269129336
BEIS,Met Office,2021-10-01,11 SERVICES,CHIEF FINANCIAL OFFICER,Morton Fraser LLP,460599,1500,269129336
BEIS,Met Office,2021-10-15,11 SERVICES,CHIEF FINANCIAL OFFICER,Morton Fraser LLP,461051,108,269129336
BEIS,Met Office,2021-10-26,12 INTERNATIONAL,MARKETS,MYACORN LTD,461299,40000,-
BEIS,Met Office,2021-10-14,11 SERVICES,PEOPLE,NAS MEDIA LTD,460991,2495,224667500
BEIS,Met Office,2021-10-06,11 SERVICES,SCIENCE,National Oceanography Centre,23003,17419.73,GB 338 5487 64
BEIS,Met Office,2021-10-06,06 ACCOMMODATION,CHIEF FINANCIAL OFFICER,National Oceanography Centre,460719,27014.61,GB 338 5487 64
BEIS,Met Office,2021-10-27,TRADE CREDITORS,OTHER,NATWEST COMMERCIAL CARDS DIVISION,461164,125481.36,N/A
BEIS,Met Office,2021-10-27,07 EQUIPMENT,CHIEF FINANCIAL OFFICER,NATWEST COMMERCIAL CARDS DIVISION,461165,7008.47,N/A
BEIS,Met Office,2021-10-27,11 SERVICES,MARKETS,NCCL AUDITORS,458413,2640,40-031300-E
BEIS,Met Office,2021-10-20,11 SERVICES,SERVICES,NETATMO,22791,58760.35,FR43532501848
BEIS,Met Office,2021-10-25,13 MISCELLANEOUS,SERVICES,NGLIS,461248,10,-
BEIS,Met Office,2021-10-07,13 MISCELLANEOUS,CHIEF FINANCIAL OFFICER,NORSCOTT VENDING SERVICES LTD,460598,21.8,751402071
BEIS,Met Office,2021-10-11,13 MISCELLANEOUS,CHIEF FINANCIAL OFFICER,NORSCOTT VENDING SERVICES LTD,460723,85,751402071
BEIS,Met Office,2021-10-20,11 SERVICES,SERVICES,NSSL GLOBAL LTD,10382,51.18,725151948
BEIS,Met Office,2021-10-20,11 SERVICES,SERVICES,NSSL GLOBAL LTD,10383,51.18,725151948
BEIS,Met Office,2021-10-07,06 ACCOMMODATION,CHIEF FINANCIAL OFFICER,OCS Group UK Limited,460720,148174.35,GB238034379
BEIS,Met Office,2021-10-27,06 ACCOMMODATION,CHIEF FINANCIAL OFFICER,OCS Group UK Limited,461354,35505.54,GB238034379
BEIS,Met Office,2021-10-27,06 ACCOMMODATION,CHIEF FINANCIAL OFFICER,OCS Group UK Limited,461354,109308.18,GB238034379
BEIS,Met Office,2021-10-06,11 SERVICES,MARKETS,Ofcom,460790,16160,833012277
BEIS,Met Office,2021-10-08,11 SERVICES,MARKETS,OVERSEAS DEVELOPMENT INSTITUTE SALES LTD,454800,12600,250 3150 54
BEIS,Met Office,2021-10-12,11 SERVICES,MARKETS,PARLIAMENTARY & SCIENTIFIC COMMITTEE,460885,667,-
BEIS,Met Office,2021-10-06,11 SERVICES,PEOPLE,PLURALSIGHT,459697,39911.08,EU826020045
BEIS,Met Office,2021-10-06,11 SERVICES,PEOPLE,PLURALSIGHT,459742,2609.6,EU826020045
BEIS,Met Office,2021-10-04,13 MISCELLANEOUS,CHIEF FINANCIAL OFFICER,POSTURITE (UK) LTD,459567,879.14,583565114
BEIS,Met Office,2021-10-05,13 MISCELLANEOUS,CHIEF FINANCIAL OFFICER,POSTURITE (UK) LTD,460683,530.04,583565114
BEIS,Met Office,2021-10-05,13 MISCELLANEOUS,CHIEF FINANCIAL OFFICER,POSTURITE (UK) LTD,460684,530.04,583565114
BEIS,Met Office,2021-10-08,13 MISCELLANEOUS,CHIEF FINANCIAL OFFICER,POSTURITE (UK) LTD,460741,50,583565114
BEIS,Met Office,2021-10-22,13 MISCELLANEOUS,CHIEF FINANCIAL OFFICER,POSTURITE (UK) LTD,460890,-39.03,583565114
BEIS,Met Office,2021-10-22,11 SERVICES,CHIEF FINANCIAL OFFICER,POSTURITE (UK) LTD,461160,561.01,583565114
BEIS,Met Office,2021-10-07,06 ACCOMMODATION,CHIEF FINANCIAL OFFICER,POWER NI ENERGY LTD,460716,406.76,617518142
BEIS,Met Office,2021-10-19,06 ACCOMMODATION,CHIEF FINANCIAL OFFICER,POWER NI ENERGY LTD,461065,117.81,617518142
BEIS,Met Office,2021-10-06,08 SOFTWARE LICENCES,TECHNOLOGY AND CIO,PRESENTATION CARTOGRAPHY LTD,460738,3217,-
BEIS,Met Office,2021-10-07,08 SOFTWARE LICENCES,TECHNOLOGY AND CIO,PRESENTATION CARTOGRAPHY LTD,460786,38000,-
BEIS,Met Office,2021-10-07,08 SOFTWARE LICENCES,TECHNOLOGY AND CIO,PRESENTATION CARTOGRAPHY LTD,460786,7000,-
BEIS,Met Office,2021-10-27,08 SOFTWARE LICENCES,CHIEF FINANCIAL OFFICER,"PROSCI, INC.",10387,11058.56,-
BEIS,Met Office,2021-10-04,11 SERVICES,SERVICES,QUEEN'S UNIVERSITY BELFAST,460539,4633,GB 254 7995 11
BEIS,Met Office,2021-10-27,10 EQUIPMENT MAINTENANCE,SERVICES,R S Aqua Ltd,461336,103.9,370059760
BEIS,Met Office,2021-10-13,10 EQUIPMENT MAINTENANCE,SERVICES,RAYMETRICS S.A. (GREEK ACCOUNT),22992,3553.63,EL999641589
BEIS,Met Office,2021-10-20,10 EQUIPMENT MAINTENANCE,SERVICES,RAYMETRICS S.A. (GREEK ACCOUNT),22994,642.11,EL999641589
BEIS,Met Office,2021-10-20,10 EQUIPMENT MAINTENANCE,SERVICES,RAYMETRICS S.A. (GREEK ACCOUNT),22996,410.95,EL999641589
BEIS,Met Office,2021-10-27,10 EQUIPMENT MAINTENANCE,SERVICES,RAYMETRICS S.A. (GREEK ACCOUNT),23002,624.66,EL999641589
BEIS,Met Office,2021-10-06,12 INTERNATIONAL,MARKETS,REACTED PERSONAL DATA,10391,2731.18,-
BEIS,Met Office,2021-10-13,11 SERVICES,PEOPLE,REACTED PERSONAL DATA,460819,15168,143043312
BEIS,Met Office,2021-10-19,11 SERVICES,SERVICES,REACTED PERSONAL DATA,460992,130.24,-
BEIS,Met Office,2021-10-20,11 SERVICES,SERVICES,REACTED PERSONAL DATA,461105,4633.2,-
BEIS,Met Office,2021-10-21,06 ACCOMMODATION,CHIEF FINANCIAL OFFICER,REACTED PERSONAL DATA,461211,11548.25,N/A
BEIS,Met Office,2021-10-26,11 SERVICES,PEOPLE,RELATIONS GROUP LTD,461343,5000,806455039
BEIS,Met Office,2021-10-06,11 SERVICES,CHIEF FINANCIAL OFFICER,Reuters Ltd,460645,1965,397000555
BEIS,Met Office,2021-10-06,07 EQUIPMENT,TECHNOLOGY AND CIO,RITTAL LTD,460629,46.24,308285849
BEIS,Met Office,2021-10-12,06 ACCOMMODATION,CHIEF FINANCIAL OFFICER,RIVER RIDGE,460872,108.98,176286083
BEIS,Met Office,2021-10-08,11 SERVICES,SERVICES,ROCKSALT SUBSEA,460534,750,233855009
BEIS,Met Office,2021-10-08,11 SERVICES,SERVICES,ROCKSALT SUBSEA,460534,175.95,233855009
BEIS,Met Office,2021-10-08,11 SERVICES,SERVICES,ROCKSALT SUBSEA,460534,75,233855009
BEIS,Met Office,2021-10-06,STOCK,SERVICES,ROTRONIC INSTRUMENTS (UK) LTD,460086,0,523538943
BEIS,Met Office,2021-10-06,TRADE CREDITORS,SERVICES,ROTRONIC INSTRUMENTS (UK) LTD,460086,35788.8,523538943
BEIS,Met Office,2021-10-06,11 SERVICES,SERVICES,ROTRONIC INSTRUMENTS (UK) LTD,460086,15,523538943
BEIS,Met Office,2021-10-05,11 SERVICES,PROGRAMMES,ROWE IT LTD,460681,55396.25,924964394
BEIS,Met Office,2021-10-05,11 SERVICES,PROGRAMMES,ROWE IT LTD,460682,14250,924964394
BEIS,Met Office,2021-10-05,11 SERVICES,PROGRAMMES,ROWE IT LTD,460686,79250,924964394
BEIS,Met Office,2021-10-05,11 SERVICES,PROGRAMMES,ROWE IT LTD,460687,7666.5,924964394
BEIS,Met Office,2021-10-05,11 SERVICES,PROGRAMMES,ROWE IT LTD,460687,53665.5,924964394
BEIS,Met Office,2021-10-05,11 SERVICES,PROGRAMMES,ROWE IT LTD,460687,15333,924964394
BEIS,Met Office,2021-10-07,11 SERVICES,PROGRAMMES,ROWE IT LTD,460688,5652.5,924964394
BEIS,Met Office,2021-10-05,11 SERVICES,PROGRAMMES,ROWE IT LTD,460700,51830,924964394
BEIS,Met Office,2021-10-12,11 SERVICES,CHIEF FINANCIAL OFFICER,SADDLES & PADDLES EXETER LTD,460830,1451.25,152264528
BEIS,Met Office,2021-10-15,06 ACCOMMODATION,CHIEF FINANCIAL OFFICER,SAFESTORE LTD,460954,2815.28,722887607
BEIS,Met Office,2021-10-04,11 SERVICES,SCIENCE,SCIENCE & TECHNOLOGY FACILITIES COUNCIL,460496,75000,287461957
BEIS,Met Office,2021-10-13,11 SERVICES,PROGRAMMES,SCIENCE & TECHNOLOGY FACILITIES COUNCIL,460871,99272.36,287461957
BEIS,Met Office,2021-10-21,06 ACCOMMODATION,CHIEF FINANCIAL OFFICER,Scottish Government,461112,28932.89,888842551
BEIS,Met Office,2021-10-05,06 ACCOMMODATION,CHIEF FINANCIAL OFFICER,SEVERN TRENT WATER LIMITED,460663,840.68,-
BEIS,Met Office,2021-10-29,06 ACCOMMODATION,CHIEF FINANCIAL OFFICER,Severn Trent Water Ltd,461441,28.25,486985565
BEIS,Met Office,2021-10-18,06 ACCOMMODATION,CHIEF FINANCIAL OFFICER,SHETLAND CLEANING SERVICES,461060,739.97,430028404
BEIS,Met Office,2021-10-27,08 SOFTWARE LICENCES,TECHNOLOGY AND CIO,SIGNAVIO GMBH,459774,96039.5,DE265675123
BEIS,Met Office,2021-10-27,08 SOFTWARE LICENCES,TECHNOLOGY AND CIO,SIGNAVIO GMBH,460546,-96039.5,DE265675123
BEIS,Met Office,2021-10-27,08 SOFTWARE LICENCES,TECHNOLOGY AND CIO,SIGNAVIO GMBH,460603,188879.5,DE265675123
BEIS,Met Office,2021-10-26,11 SERVICES,TECHNOLOGY AND CIO,SILICON REEF LTD,461150,4250,GB 254 7458 79
BEIS,Met Office,2021-10-21,11 SERVICES,MARKETS,SOCIAL SENSING LTD,461181,2758,-
BEIS,Met Office,2021-10-21,11 SERVICES,MARKETS,SOCIAL SENSING LTD,461182,5768,-
BEIS,Met Office,2021-10-21,08 SOFTWARE LICENCES,PROGRAMMES,SOFTWAREONE,461226,1026.75,GB 942 5301 43
BEIS,Met Office,2021-10-21,08 SOFTWARE LICENCES,PROGRAMMES,SOFTWAREONE,461226,1185,GB 942 5301 43
BEIS,Met Office,2021-10-21,08 SOFTWARE LICENCES,PROGRAMMES,SOFTWAREONE,461227,342.25,GB 942 5301 43
BEIS,Met Office,2021-10-21,08 SOFTWARE LICENCES,PROGRAMMES,SOFTWAREONE,461227,395,GB 942 5301 43
BEIS,Met Office,2021-10-21,08 SOFTWARE LICENCES,PROGRAMMES,SOFTWAREONE,461228,1791,GB 942 5301 43
BEIS,Met Office,2021-10-21,08 SOFTWARE LICENCES,PROGRAMMES,SOFTWAREONE,461228,1158,GB 942 5301 43
BEIS,Met Office,2021-10-05,03 STAFF COSTS T&S,MARKETS,SOLOMON & COMPANY (ST HELENA) PLC,460685,168,-
BEIS,Met Office,2021-10-13,03 STAFF COSTS T&S,MARKETS,SOLOMON & COMPANY (ST HELENA) PLC,460858,95,-
BEIS,Met Office,2021-10-14,03 STAFF COSTS T&S,MARKETS,SOLOMON & COMPANY (ST HELENA) PLC,460995,168,-
BEIS,Met Office,2021-10-27,03 STAFF COSTS T&S,MARKETS,SOLOMON & COMPANY (ST HELENA) PLC,461400,950,-
BEIS,Met Office,2021-10-01,06 ACCOMMODATION,CHIEF FINANCIAL OFFICER,South West Water Ltd,460519,66.83,236873674
BEIS,Met Office,2021-10-18,06 ACCOMMODATION,CHIEF FINANCIAL OFFICER,South West Water Ltd,460996,1111.35,236873674
BEIS,Met Office,2021-10-18,06 ACCOMMODATION,CHIEF FINANCIAL OFFICER,South West Water Ltd,461064,1182.7,236873674
BEIS,Met Office,2021-10-13,11 SERVICES,MARKETS,SPOKE (INTERACTIVE) LTD,460941,700,840156451
BEIS,Met Office,2021-10-18,06 ACCOMMODATION,CHIEF FINANCIAL OFFICER,Sruc,459840,560,GB435882817
BEIS,Met Office,2021-10-05,11 SERVICES,TECHNOLOGY AND CIO,SSE CONTRACTING LTD,460692,10393.84,382894546
BEIS,Met Office,2021-10-12,06 ACCOMMODATION,CHIEF FINANCIAL OFFICER,ST MODWEN VENTURES LTD,460881,15.79,975081008
BEIS,Met Office,2021-10-18,11 SERVICES,CHIEF FINANCIAL OFFICER,SURE SOUTH ATLANTIC LTD,461018,4743,-
BEIS,Met Office,2021-10-18,11 SERVICES,CHIEF FINANCIAL OFFICER,SURE SOUTH ATLANTIC LTD,461019,770,-
BEIS,Met Office,2021-10-19,11 SERVICES,CHIEF FINANCIAL OFFICER,SURE SOUTH ATLANTIC LTD (ST HELENA),461046,2002.84,30005
BEIS,Met Office,2021-10-06,07 EQUIPMENT,SERVICES,SWALE TECHNOLOGIES LTD,10394,283954.59,530846451
BEIS,Met Office,2021-10-13,11 SERVICES,PEOPLE,SWANTECH LOGISTICS LTD,460877,900,769332401
BEIS,Met Office,2021-10-27,11 SERVICES,CHIEF FINANCIAL OFFICER,SWISSCOM (SCHWEIZ) AG,460884,86.96,-
BEIS,Met Office,2021-10-06,11 SERVICES,TECHNOLOGY AND CIO,SYNTHESYS SYSTEMS ENGINEERS LTD,460735,1550,499309492
BEIS,Met Office,2021-10-01,11 SERVICES,CHIEF FINANCIAL OFFICER,TELEFONICA O2 UK LIMITED,460566,50.14,778603785
BEIS,Met Office,2021-10-14,11 SERVICES,CHIEF FINANCIAL OFFICER,TELEFONICA O2 UK LIMITED,460955,7681.89,778603785
BEIS,Met Office,2021-10-07,06 ACCOMMODATION,CHIEF FINANCIAL OFFICER,TENNIE FACILITIES PROPERTY MANAGEMENT LTD,460731,207.15,982055803
BEIS,Met Office,2021-10-05,11 SERVICES,OFFICE OF THE CEO,THE LEGAL DIRECTOR,460650,3600,899 338941
BEIS,Met Office,2021-10-07,FIXTURE & FITTINGS,CHIEF FINANCIAL OFFICER,THORLUX LIGHTING,460717,33448,GB 109 939 440
BEIS,Met Office,2021-10-13,FIXTURE & FITTINGS,CHIEF FINANCIAL OFFICER,THORLUX LIGHTING,460873,3871.16,GB 109 939 440
BEIS,Met Office,2021-10-25,FIXTURE & FITTINGS,CHIEF FINANCIAL OFFICER,THORLUX LIGHTING,461090,9777.86,GB 109 939 440
BEIS,Met Office,2021-10-29,FIXTURE & FITTINGS,CHIEF FINANCIAL OFFICER,THORLUX LIGHTING,461383,1999.89,GB 109 939 440
BEIS,Met Office,2021-10-07,11 SERVICES,SERVICES,Trinity House,460653,20108,243120414
BEIS,Met Office,2021-10-11,07 EQUIPMENT,TECHNOLOGY AND CIO,UK CONNECT LTD,460075,350,154468983
BEIS,Met Office,2021-10-11,07 EQUIPMENT,TECHNOLOGY AND CIO,UK CONNECT LTD,460075,900,154468983
BEIS,Met Office,2021-10-11,11 SERVICES,TECHNOLOGY AND CIO,UK CONNECT LTD,460075,790,154468983
BEIS,Met Office,2021-10-11,11 SERVICES,TECHNOLOGY AND CIO,UK CONNECT LTD,460075,720,154468983
BEIS,Met Office,2021-10-11,11 SERVICES,TECHNOLOGY AND CIO,UK CONNECT LTD,460075,720,154468983
BEIS,Met Office,2021-10-04,11 SERVICES,TECHNOLOGY AND CIO,UKCLOUD LTD,460648,1608,172647982
BEIS,Met Office,2021-10-07,11 SERVICES,MARKETS,ULTRA ELECTRONICS LTD NUCLEAR CONTROL SYSTEMS,460697,5001.01,123340754
BEIS,Met Office,2021-10-26,11 SERVICES,MARKETS,ULTRA ELECTRONICS LTD NUCLEAR CONTROL SYSTEMS,461257,8152.88,123340754
BEIS,Met Office,2021-10-26,11 SERVICES,MARKETS,ULTRA ELECTRONICS LTD NUCLEAR CONTROL SYSTEMS,461259,8152.88,123340754
BEIS,Met Office,2021-10-26,11 SERVICES,MARKETS,ULTRA ELECTRONICS LTD NUCLEAR CONTROL SYSTEMS,461260,8152.88,123340754
BEIS,Met Office,2021-10-26,11 SERVICES,MARKETS,ULTRA ELECTRONICS LTD NUCLEAR CONTROL SYSTEMS,461261,8152.88,123340754
BEIS,Met Office,2021-10-26,11 SERVICES,MARKETS,ULTRA ELECTRONICS LTD NUCLEAR CONTROL SYSTEMS,461262,8152.88,123340754
BEIS,Met Office,2021-10-19,11 SERVICES,SCIENCE,University College London,460973,25000,524371168
BEIS,Met Office,2021-10-19,11 SERVICES,PROGRAMMES,University Of Cambridge,461111,10000,214222124
BEIS,Met Office,2021-10-01,13 MISCELLANEOUS,SCIENCE,University Of Exeter,460326,1000,142047795
BEIS,Met Office,2021-10-01,13 MISCELLANEOUS,SCIENCE,University Of Exeter,460481,1000,142047795
BEIS,Met Office,2021-10-05,13 MISCELLANEOUS,SCIENCE,University Of Exeter,460482,1000,142047795
BEIS,Met Office,2021-10-01,13 MISCELLANEOUS,SCIENCE,University Of Exeter,460491,-1000,142047795
BEIS,Met Office,2021-10-01,13 MISCELLANEOUS,SCIENCE,University Of Exeter,460567,3428.58,142047795
BEIS,Met Office,2021-10-11,13 MISCELLANEOUS,SCIENCE,University Of Exeter,460820,1000,142047795
BEIS,Met Office,2021-10-11,13 MISCELLANEOUS,SCIENCE,University Of Exeter,460832,2000,142047795
BEIS,Met Office,2021-10-19,11 SERVICES,SCIENCE,University Of Exeter,460835,12500,142047795
BEIS,Met Office,2021-10-13,13 MISCELLANEOUS,SCIENCE,University Of Exeter,460888,1000,142047795
BEIS,Met Office,2021-10-15,11 SERVICES,PROGRAMMES,University Of Exeter,460953,30967.34,142047795
BEIS,Met Office,2021-10-19,11 SERVICES,PROGRAMMES,University Of Exeter,460981,177.18,142047795
BEIS,Met Office,2021-10-21,11 SERVICES,MARKETS,University Of Exeter,461066,2000,142047795
BEIS,Met Office,2021-10-19,13 MISCELLANEOUS,SCIENCE,University Of Exeter,461153,562.5,142047795
BEIS,Met Office,2021-10-29,13 MISCELLANEOUS,SCIENCE,University Of Exeter,461340,1000,142047795
BEIS,Met Office,2021-10-08,13 MISCELLANEOUS,SCIENCE,University Of Leeds,460725,1000,613451470
BEIS,Met Office,2021-10-11,13 MISCELLANEOUS,SCIENCE,University Of Leeds,460726,1000,613451470
BEIS,Met Office,2021-10-08,13 MISCELLANEOUS,SCIENCE,University Of Leeds,460728,1000,613451470
BEIS,Met Office,2021-10-08,13 MISCELLANEOUS,SCIENCE,University Of Leeds,460729,1000,613451470
BEIS,Met Office,2021-10-06,13 MISCELLANEOUS,SCIENCE,University Of Leeds,460730,1000,613451470
BEIS,Met Office,2021-10-06,13 MISCELLANEOUS,SCIENCE,University Of Leeds,460732,1500,613451470
BEIS,Met Office,2021-10-06,13 MISCELLANEOUS,SCIENCE,University Of Leeds,460733,1000,613451470
BEIS,Met Office,2021-10-08,13 MISCELLANEOUS,SCIENCE,University Of Leeds,460734,1000,613451470
BEIS,Met Office,2021-10-25,13 MISCELLANEOUS,SCIENCE,University Of Leeds,461218,1000,613451470
BEIS,Met Office,2021-10-06,11 SERVICES,SERVICES,University Of Leicester,460751,4633.2,916583894
BEIS,Met Office,2021-10-27,11 SERVICES,PROGRAMMES,University Of Oxford,457724,165540,125506730
BEIS,Met Office,2021-10-07,11 SERVICES,SCIENCE,University Of Oxford,460690,25000,125506730
BEIS,Met Office,2021-10-21,13 MISCELLANEOUS,SCIENCE,University Of Oxford,461149,1000,125506730
BEIS,Met Office,2021-10-25,11 SERVICES,PROGRAMMES,University Of Reading,460114,46644.34,200012659
BEIS,Met Office,2021-10-19,11 SERVICES,PROGRAMMES,University Of Reading,460121,9416.57,200012659
BEIS,Met Office,2021-10-11,13 MISCELLANEOUS,SCIENCE,University Of Reading,460882,1250,200012659
BEIS,Met Office,2021-10-19,11 SERVICES,SCIENCE,University Of Reading,461020,1280,200012659
BEIS,Met Office,2021-10-27,11 SERVICES,PROGRAMMES,University Of Reading,461338,40565.88,200012659
BEIS,Met Office,2021-10-19,07 EQUIPMENT,PROGRAMMES,University Of York,461117,120,647200541
BEIS,Met Office,2021-10-19,07 EQUIPMENT,PROGRAMMES,University Of York,461117,500,647200541
BEIS,Met Office,2021-10-19,07 EQUIPMENT,PROGRAMMES,University Of York,461117,500,647200541
BEIS,Met Office,2021-10-01,13 MISCELLANEOUS,CHIEF FINANCIAL OFFICER,VICKERY HOLMAN,460601,315.06,943875678
BEIS,Met Office,2021-10-04,06 ACCOMMODATION,CHIEF FINANCIAL OFFICER,VICKERY HOLMAN,460634,2871.47,943875678
BEIS,Met Office,2021-10-11,STOCK,SERVICES,VWR INTERNATIONAL LTD,460563,0,823853225
BEIS,Met Office,2021-10-11,STOCK,SERVICES,VWR INTERNATIONAL LTD,460563,0,823853225
BEIS,Met Office,2021-10-11,TRADE CREDITORS,SERVICES,VWR INTERNATIONAL LTD,460563,599.75,823853225
BEIS,Met Office,2021-10-11,TRADE CREDITORS,SERVICES,VWR INTERNATIONAL LTD,460563,187.26,823853225
BEIS,Met Office,2021-10-11,11 SERVICES,SERVICES,VWR INTERNATIONAL LTD,460563,22.8,823853225
BEIS,Met Office,2021-10-13,STOCK,SERVICES,VWR INTERNATIONAL LTD,460829,0,823853225
BEIS,Met Office,2021-10-13,TRADE CREDITORS,SERVICES,VWR INTERNATIONAL LTD,460829,312.1,823853225
BEIS,Met Office,2021-10-20,11 SERVICES,MARKETS,WALNUT UNLIMITED LIMITED,461113,24950,648857968
BEIS,Met Office,2021-10-06,06 ACCOMMODATION,CHIEF FINANCIAL OFFICER,WARWICKSHIRE COLLEGE,460748,585.66,585279590
BEIS,Met Office,2021-10-29,11 SERVICES,CHIEF FINANCIAL OFFICER,WEBEX COMMUNICATIONS UK LTD,461380,209.92,815974302
BEIS,Met Office,2021-10-26,11 SERVICES,SERVICES,WILLIAMS SHIPPING TRANSPORT LTD,461219,4200,370067174
BEIS,Met Office,2021-10-05,11 SERVICES,TECHNOLOGY AND CIO,WIREFAST LTD,460667,2177.1,749536001
BEIS,Met Office,2021-10-05,11 SERVICES,TECHNOLOGY AND CIO,WIREFAST LTD,460668,940.09,749536001
BEIS,Met Office,2021-10-05,11 SERVICES,TECHNOLOGY AND CIO,WIREFAST LTD,460671,847.02,749536001
BEIS,Met Office,2021-10-01,FIXTURE & FITTINGS,CHIEF FINANCIAL OFFICER,XEIAD,460542,5280,811321091
BEIS,Met Office,2021-10-01,FIXTURE & FITTINGS,CHIEF FINANCIAL OFFICER,XEIAD,460542,11717.24,811321091
BEIS,Met Office,2021-10-01,06 ACCOMMODATION,CHIEF FINANCIAL OFFICER,XEIAD,460543,3046.63,811321091
BEIS,Met Office,2021-10-01,06 ACCOMMODATION,CHIEF FINANCIAL OFFICER,XEIAD,460544,1387.89,811321091
BEIS,Met Office,2021-10-04,10 EQUIPMENT MAINTENANCE,SERVICES,YOUNG CALIBRATION LIMITED,460602,3250,673900720
BEIS,Met Office,2021-10-04,11 SERVICES,SERVICES,YOUNG CALIBRATION LIMITED,460602,15,673900720
BEIS,Met Office,2021-10-21,10 EQUIPMENT MAINTENANCE,SERVICES,YOUNG CALIBRATION LIMITED,461159,1800,673900720
BEIS,Met Office,2021-10-21,11 SERVICES,SERVICES,YOUNG CALIBRATION LIMITED,461159,15,673900720
BEIS,Met Office,2021-10-27,10 EQUIPMENT MAINTENANCE,SERVICES,YOUNG CALIBRATION LIMITED,461393,1170,673900720
BEIS,Met Office,2021-10-27,11 SERVICES,SERVICES,YOUNG CALIBRATION LIMITED,461393,15,673900720
